fUST/lending_fUST_20250823
["ID","MTS","AMOUNT","RATE_DAILY","PERIOD"]
[381030184,1755957038527,-500.0,0.00028306,2]
[381030185,1755957038536,-151.28036725,0.00028306,2]
[381030186,1755957038545,-500.0,0.00028386,2]
[381030187,1755957038555,-215.94678008,0.0002843,7]
[381030188,1755957038564,-1642.72,0.0002855,30]
[381030189,1755957038573,-1642.72,0.00028551,30]
[381030190,1755957038583,-198.68781,0.00028551,10]
[381030191,1755957038592,-245.0,0.0002858,2]
[381030192,1755957038602,-198.0,0.0002858,2]
[381030193,1755957038611,-198.0,0.0002858,2]
[381030194,1755957038621,-198.0,0.0002858,2]
[381030195,1755957038630,-500.0,0.0002858,2]
[381030196,1755957038639,-2475.47459582,0.00028621,2]
[381030197,1755957038651,-6319.27632182,0.00028621,2]
[381030198,1755957038660,-174.5523806,0.00028754,2]
[381030199,1755957038669,-500.0,0.00028854,2]
[381030200,1755957038685,-518.43934766,0.0002899,2]
[381030336,1755957043077,-308.73930803,0.0002899,2]
[381030337,1755957043088,-111.9941775,0.00029,2]
[381030338,1755957043100,-189.45150916,0.00029,2]
[381030339,1755957043111,-351.0,0.00029012,2]
[381030340,1755957043120,-174.55238056,0.00029021,2]
[381030341,1755957043130,-250.0,0.00029048,2]
[381030342,1755957043139,-234.0,0.00029128,2]
[381030345,1755957043148,-174.55238056,0.00029289,2]
[381030347,1755957043158,-973.0,0.00029376,2]
[381030348,1755957043167,-2154.0,0.00029376,2]
[381030349,1755957043176,-637.0,0.00029376,2]
[381030350,1755957043185,-250.0,0.00029376,2]
[381030351,1755957043194,-159.73,0.00029376,2]
[381030352,1755957043204,-223.38103942,0.00029396,11]
[381030353,1755957043213,-2200.0,0.00029416,2]
[381030354,1755957043223,-174.55238056,0.00029556,2]
[381030355,1755957043232,-203.75078388,0.00029712,2]
[381030356,1755957043241,-191.5858036,0.00029712,2]
[381030357,1755957043251,-1600.74,0.00029721,2]
[381030358,1755957043260,-151.0,0.00029722,2]
[381030359,1755957043270,-756.68045208,0.00029722,2]
[381030360,1755957043279,-1037.02327218,0.00029722,2]
[381030393,1755957046079,-1986.67181433,0.00029722,2]
[381030394,1755957046199,-504.71875267,0.00029722,2]
[381030395,1755957046211,-178.2630597,0.00029722,2]
[381030396,1755957046221,-610.28091887,0.00029722,2]
[381030397,1755957046231,-440.89810417,0.00029722,2]
[381030398,1755957046240,-1763.59241667,0.00029722,2]
[381030399,1755957046249,-3964.11485458,0.00029722,2]
[381030400,1755957046259,-1000.0,0.00029722,2]
[381030401,1755957046268,-1000.0,0.00029722,2]
[381030402,1755957046278,-1000.0,0.00029722,2]
[381030403,1755957046287,-2030.296672,0.00029722,2]
[381030404,1755957046296,-624.0,0.00029722,2]
[381030405,1755957046306,-194.72792766,0.00029722,2]
[381030406,1755957046315,-151.0,0.00029722,2]
[381030407,1755957046324,-151.0,0.00029722,2]
[381030408,1755957046334,-151.0,0.00029722,2]
[381030409,1755957046343,-151.0,0.00029722,2]
[381030410,1755957046352,-151.0,0.00029722,2]
[381030411,1755957046362,-151.0,0.00029722,2]
[381030412,1755957046371,-151.0,0.00029722,2]
[381030413,1755957046380,-151.0,0.00029722,2]
[381030414,1755957046389,-151.0,0.00029722,2]
[381030415,1755957046399,-245.86959066,0.00029722,2]
[381030416,1755957046408,-6055.56588869,0.00029722,2]
[381030417,1755957046419,-3773.41487449,0.00029722,2]
[381030418,1755957046430,-456.33038351,0.00029722,2]
[381030459,1755957946418,172.0,0.00027397,120]
[381030460,1755958049089,-2279.1655838,0.00020725,2]
[381030461,1755958086149,159.987798,0.00013699,2]
[381030462,1755958170107,-1113.10459336,0.00020725,2]
[381030481,1755958232230,-1261.76846147,0.00020725,2]
[381030482,1755958232242,-383.45705106,0.00020725,2]
[381030483,1755958232251,-228.81240807,0.00021715,2]
[381030484,1755958232260,-325.527033,0.00021815,2]
[381030485,1755958232270,-222.97747096,0.0002249,2]
[381030486,1755958232279,-150.0,0.00022974,2]
[381030487,1755958232288,-203.584396,0.00023393,2]
[381030488,1755958232298,-325.527033,0.0002349,2]
[381030489,1755958232307,-203.10248837,0.00024204,2]
[381030490,1755958232318,-222.97747096,0.00024216,2]
[381030491,1755958232328,-240.68846029,0.00024953,2]
[381030492,1755958232339,-1723.62554863,0.0002551,2]
[381030493,1755958232358,-496.3908741,0.0002551,2]
[381030494,1755958232371,-190.0,0.00025608,2]
[381030495,1755958232386,-300.0,0.00025608,2]
[381030496,1755958232396,-300.0,0.00025608,2]
[381030497,1755958232406,-552.31421141,0.00025608,2]
[381030498,1755958232424,-300.0,0.00025608,2]
[381030499,1755958232444,-347.68578859,0.00025608,2]
[381030500,1755958232454,-10430.64087107,0.00025609,2]
[381030501,1755958232465,-9354.60856711,0.00025609,2]
[381030502,1755958232518,-7578.44980548,0.00025609,2]
[381030503,1755958232530,-4558.69426465,0.00025609,2]
[381030544,1755958238474,-662.46728706,0.00025609,2]
[381030547,1755958238486,-1430.69635413,0.00025609,2]
[381030549,1755958238498,-461.65392,0.00025609,2]
[381030551,1755958238509,-829.92113084,0.00025609,2]
[381030553,1755958238521,-12837.55319627,0.00025609,2]
[381030555,1755958238530,-1200.0,0.0002561,2]
[381030557,1755958238540,-3151.68707769,0.00025612,2]
[381030559,1755958238550,-171.51818524,0.00025673,2]
[381030561,1755958238560,-12695.67094824,0.00025726,2]
[381030563,1755958238570,-417.15472785,0.00025726,2]
[381030565,1755958238579,-172.0,0.00025811,7]
[381030567,1755958238589,-172.0,0.00025911,7]
[381030569,1755958238599,-222.97747096,0.00025943,4]
[381030570,1755958238609,-172.01,0.00026011,7]
[381030571,1755958238619,-159.987798,0.00026027,2]
[381030573,1755958238629,-1270.4346666,0.00026429,2]
[381030574,1755958238640,-376.14580871,0.00027,3]
[381030575,1755958238650,-154.925234,0.00027653,20]
[381030576,1755958238660,-222.97747096,0.00027669,8]
[381030577,1755958238670,-420.0,0.00027725,2]
[381030578,1755958238680,-677.97,0.00027727,17]
[381030579,1755958238691,-277.0,0.00027727,2]
[381030580,1755958238701,-1200.0,0.00027849,2]
[381030581,1755958238710,-1200.0,0.00028,2]
[381030582,1755958238720,-590.55017062,0.0002823,2]
[381030583,1755958238729,-3000.0,0.000283,2]
[381030584,1755958238739,-3000.0,0.0002831,2]
[381030585,1755958238748,-3000.0,0.0002832,2]
[381030586,1755958238758,-3000.0,0.0002833,2]
[381030587,1755958238767,-3000.0,0.0002834,2]
[381030588,1755958238777,-1517.24,0.0002834,10]
[381030589,1755958238787,-922.64,0.00028349,2]
[381030590,1755958238796,-4706.400291,0.0002835,2]
[381030591,1755958238806,-500.0,0.00028553,2]
[381030592,1755958238815,-500.0,0.00028553,2]
[381030593,1755958238825,-500.0,0.00028553,2]
[381030594,1755958238835,-521.45841663,0.00028553,2]
[381030595,1755958238844,-500.0,0.00028553,2]
[381030596,1755958238853,-590.55017059,0.00028598,2]
[381030597,1755958238862,-794.82779778,0.0002883,2]
[381030598,1755958238872,-590.55017059,0.00028965,2]
[381030599,1755958238881,-1300.0,0.00029,3]
[381030600,1755958238891,-194.72792766,0.00029182,2]
[381030601,1755958238901,-2030.296672,0.00029182,2]
[381030602,1755958238913,-12118.28841797,0.00029182,2]
[381030605,1755958238929,-296.25,0.00029182,2]
[381030607,1755958238940,-326.75342642,0.00029182,2]
[381030610,1755958238967,-7892.13095422,0.00029182,2]
[381030612,1755958238977,-160.0,0.00029234,2]
[381030613,1755958238987,-1864.3278707,0.00029237,2]
[381030614,1755958238999,-241.08977816,0.00029237,2]
[381030616,1755958239009,-215.94678008,0.00029289,2]
[381030617,1755958239019,-1388.36144123,0.00029292,2]
[381030621,1755958240641,-217.0334113,0.00029289,2]
[381030622,1755958240652,-529.05847148,0.00029289,2]
[381030623,1755958240663,-794.95666064,0.00029292,2]
[381030624,1755958240673,-376.14580871,0.00029294,2]
[381030625,1755958240683,-130.9149521,0.00029294,2]
[381030923,1755958243777,-160.0,0.00029289,2]
[381030925,1755958243788,-29.0850479,0.00029294,2]
[381030927,1755958243798,-232.37252479,0.00029294,2]
[381030929,1755958243809,-844.50316758,0.00029294,2]
[381030931,1755958243819,-295.0,0.00029311,2]
[381030933,1755958243829,-151.0,0.00029311,2]
[381030935,1755958243839,-151.0,0.00029311,2]
[381030937,1755958243850,-590.55017059,0.00029333,2]
[381030939,1755958243860,-2264.10087164,0.00029347,2]
[381030940,1755958243870,-151.0,0.00029361,2]
[381030941,1755958243880,-236.21874652,0.00029363,2]
[381030942,1755958243891,-460.64,0.00029363,3]
[381030943,1755958243902,-222.15909342,0.00029373,5]
[381030944,1755958243917,-500.0,0.00029373,5]
[381030945,1755958243927,-338.75407642,0.00029373,5]
[381030947,1755958243937,-500.0,0.00029373,5]
[381030949,1755958243947,-500.0,0.00029373,5]
[381030951,1755958243960,-500.0,0.00029373,2]
[381030953,1755958243970,-500.0,0.00029373,5]
[381030955,1755958243980,-500.0,0.00029373,5]
[381030957,1755958243990,-500.0,0.00029373,5]
[381030959,1755958244001,-500.0,0.00029373,5]
[381030961,1755958244010,-160.37492634,0.00029373,2]
[381030963,1755958244020,-500.0,0.00029373,5]
[381030965,1755958244030,-44.46331213,0.00029373,5]
[381031101,1755958370317,215.588409,0.000199,2]
[381031102,1755958404437,277.6,0.00028553,120]
[381031105,1755958510614,38839.01706164,0.00028555,30]
[381031109,1755958537741,215.99271934,0.000199,2]
[381031116,1755958710786,210.02692111,0.000199,2]
[381031117,1755958732536,151.0,0.0002001,2]
[381031123,1755958879216,210.11958976,0.000199,2]
[381031125,1755959049558,205.50103617,0.000199,2]
[381031126,1755959076364,159.987798,0.00013699,2]
[381031140,1755959220064,222.80594364,0.000199,2]
[381031146,1755959246991,13920.51379788,0.00028555,60]
[381031147,1755959251087,-8891.95751739,0.00021527,2]
[381031148,1755959251108,-19433.96711383,0.00021626,2]
[381031149,1755959251132,-222.80594345,0.00021627,2]
[381031150,1755959251156,-222.80594345,0.00023353,2]
[381031151,1755959251182,-222.80594345,0.0002508,2]
[381031152,1755959251205,-1000.0,0.0002559,2]
[381031153,1755959251227,-160.0,0.00025775,2]
[381031154,1755959251247,-160.0,0.00025776,2]
[381031155,1755959251271,-363.85992706,0.0002585,2]
[381031156,1755959251295,-199.0,0.00026749,20]
[381031157,1755959251329,-222.80594345,0.00026806,6]
[381031158,1755959251359,-542.376,0.00026849,14]
[381031159,1755959251380,-1942.51436988,0.00026987,2]
[381031160,1755959251402,-10195.18809095,0.00027087,2]
[381031161,1755959251423,-6780.3653277,0.00027087,2]
[381031162,1755959251460,-10000.0,0.00027087,2]
[381031163,1755959251481,-154.925234,0.00027653,20]
[381031164,1755959251502,-376.14580871,0.00028,10]
[381031165,1755959251521,-13250.55223006,0.00028,2]
[381031166,1755959251543,-160.0,0.00028252,2]
[381031167,1755959251562,-3140.29,0.00028272,7]
[381031168,1755959251581,-160.0,0.00028301,2]
[381031169,1755959251601,-232.37252479,0.00028301,2]
[381031170,1755959251622,-844.50316758,0.00028301,2]
[381031171,1755959251642,-215.94678008,0.00028305,2]
[381031172,1755959251663,-529.05847148,0.00028305,2]
[381031173,1755959251683,-160.0,0.00028305,2]
[381031174,1755959251702,-217.0334113,0.00028305,2]
[381031175,1755959251722,-376.14580871,0.00028308,2]
[381031176,1755959251742,-155.15268045,0.00028449,2]
[381031177,1755959251762,-155.15268041,0.00028449,2]
[381031178,1755959251782,-155.15268041,0.0002845,2]
[381031179,1755959251802,-155.15268041,0.0002845,2]
[381031180,1755959251822,-16637.08885027,0.0002845,2]
[381031181,1755959251842,-155.15268041,0.0002845,2]
[381031182,1755959251984,-1264.37,0.0002853,10]
[381031183,1755959252009,-222.80594345,0.00028533,10]
[381031184,1755959252032,-224.4078092,0.00028539,2]
[381031185,1755959252052,-2244.078092,0.0002854,2]
[381031186,1755959252073,-500.0,0.00028549,2]
[381031187,1755959252094,-543.98014896,0.00028549,2]
[381031188,1755959252115,-500.0,0.00028549,2]
[381031189,1755959252138,-278.28552969,0.00028549,2]
[381031190,1755959252158,-416.16767956,0.00028549,2]
[381031191,1755959252179,-457.07016158,0.00028549,2]
[381031192,1755959252210,-500.0,0.00028549,2]
[381031193,1755959252231,-162.83845866,0.00028549,2]
[381031194,1755959252255,-500.0,0.00028549,2]
[381031195,1755959252276,-342.7780112,0.00028549,2]
[381031196,1755959252299,-465.44939416,0.00028549,2]
[381031197,1755959252322,-500.0,0.00028549,2]
[381031198,1755959252345,-500.0,0.00028549,2]
[381031199,1755959252366,-500.0,0.00028549,2]
[381031200,1755959252389,-500.0,0.00028549,2]
[381031201,1755959252410,-500.0,0.00028549,2]
[381031202,1755959252433,-500.0,0.00028549,2]
[381031203,1755959252454,-500.0,0.00028549,2]
[381031204,1755959252476,-500.0,0.00028549,2]
[381031205,1755959252496,-500.0,0.00028549,2]
[381031206,1755959252517,-500.0,0.00028549,2]
[381031207,1755959252540,-500.0,0.00028549,2]
[381031208,1755959252562,-500.0,0.00028549,2]
[381031209,1755959252604,-515.3241318,0.00028549,2]
[381031210,1755959252627,-500.0,0.00028549,2]
[381031211,1755959252648,-500.0,0.00028549,2]
[381031212,1755959252669,-500.0,0.00028549,2]
[381031213,1755959252692,-292.31196289,0.00028549,2]
[381031214,1755959252712,-500.0,0.00028549,2]
[381031215,1755959252732,-499.99999999,0.00028549,2]
[381031216,1755959252753,-1543.23,0.00028549,2]
[381031217,1755959252774,-341.7888646,0.0002855,2]
[381031218,1755959252794,-38963.01407168,0.0002855,30]
[381031229,1755959331613,9246.04230355,0.0002,2]
[381031232,1755959332691,764.931948,0.00028555,120]
[381031303,1755959432492,-353.79393509,0.00020763,2]
[381031328,1755959439153,-2.69557443,0.00020763,2]
[381031329,1755959439162,-356.48950952,0.0002249,2]
[381031330,1755959439173,-1199.2470594,0.00024,60]
[381031331,1755959439182,-356.48950952,0.00024216,2]
[381031332,1755959439191,-15481.54257703,0.00025,2]
[381031333,1755959439207,-588.76035531,0.00025,2]
[381031334,1755959439216,-529.05847148,0.00025804,2]
[381031335,1755959439225,-217.0334113,0.00025804,2]
[381031336,1755959439235,-160.0,0.00025804,2]
[381031337,1755959439244,-232.37252479,0.00025804,2]
[381031338,1755959439255,-844.50316758,0.00025804,2]
[381031339,1755959439264,-356.48950952,0.00025943,4]
[381031340,1755959439273,-199.0,0.00026649,20]
[381031341,1755959439282,-1280.34734913,0.00027001,5]
[381031342,1755959439293,-356.48950952,0.00027669,8]
[381031343,1755959439302,-417.15472785,0.00028291,2]
[381031344,1755959439311,-1699.70007361,0.0002835,2]
[381031345,1755959439320,-11091.39256684,0.0002845,2]
[381031346,1755959439331,-1053.64,0.0002854,10]
[381031347,1755959439341,-37800.68833309,0.0002854,7]
[381031348,1755959439444,-1611.73860243,0.0002854,7]
[381031349,1755959439455,-287.70733921,0.0002854,7]
[381031350,1755959439466,-357.93594716,0.0002854,7]
[381031351,1755959439477,-844.5497084,0.0002854,7]
[381031352,1755959439488,-736.12090922,0.0002854,7]
[381031354,1755959440550,-61324.93814815,0.0002854,7]
[381031356,1755959440561,-1006.2831917,0.0002854,7]
[381031358,1755959440573,-1245.216234,0.0002854,7]
[381031606,1755959443726,-22.71642027,0.000239,60]
[381031608,1755959443738,-176.28357973,0.000239,60]
[381031610,1755959443748,-116.71818191,0.0002854,7]
[381032295,1755960009928,159.987798,0.00013699,2]
[381032307,1755960452128,-306.96191622,0.0002249,2]
[381032308,1755960452159,-306.96191622,0.00024216,2]
[381032309,1755960452190,-306.96191622,0.00025943,4]
[381032310,1755960452222,-302.907251,0.00026884,2]
[381032311,1755960452253,-2077.55,0.00027,3]
[381032312,1755960452282,-376.14580871,0.00027,3]
[381032313,1755960452312,-154.86705,0.00027653,20]
[381032314,1755960452343,-306.96191622,0.00027669,8]
[381032315,1755960452371,-157.25,0.00028,4]
[381032316,1755960452400,-2159.0,0.00028185,2]
[381032317,1755960452427,-175.75178841,0.00028349,2]
[381032318,1755960452454,-240.02769707,0.0002835,2]
[381032319,1755960452481,-1587.71762267,0.0002835,2]
[381032320,1755960452509,-9573.98910288,0.0002835,2]
[381032321,1755960452539,-6732.87695922,0.0002835,7]
[381032322,1755960452567,-175.7517884,0.00028377,2]
[381032323,1755960452597,-160.0,0.00028378,2]
[381032324,1755960452626,-175.7517884,0.00028405,2]
[381032325,1755960452656,-622.18,0.0002842,3]
[381032326,1755960452683,-311.09,0.0002842,3]
[381032327,1755960452710,-155.55,0.0002842,3]
[381032328,1755960452737,-776.41,0.0002842,10]
[381032329,1755960452764,-466.65,0.0002842,3]
[381032330,1755960452791,-706.88459898,0.0002842,2]
[381032331,1755960452821,-1478.93,0.00028429,2]
[381032332,1755960452853,-365.81244032,0.00028429,2]
[381032333,1755960452880,-371.41977902,0.00028429,2]
[381032334,1755960452907,-446.14712576,0.00028429,2]
[381032335,1755960452934,-170.8944323,0.0002843,2]
[381032336,1755960452962,-157710.79175816,0.0002843,2]
[381032351,1755960606736,206.44852768,0.0002249,2]
[381032352,1755960606767,206.44852768,0.00024216,2]
[381032353,1755960606796,361.28492362,0.0002249,2]
[381032358,1755960631795,-199.0,0.00026749,20]
[381032359,1755960631805,-844.50316758,0.00028,3]
[381032360,1755960631815,-250.0,0.00028,7]
[381032361,1755960631824,-1389.25291981,0.0002835,2]
[381032363,1755960631834,-433.24,0.0002842,10]
[381032364,1755960631843,-201.96702828,0.0002842,2]
[381032365,1755960631852,-7418.85794144,0.0002843,2]
[381032367,1755960631877,-2302.21025864,0.0002843,2]
[381032369,1755960631889,-473.82,0.0002843,2]
[381032370,1755960631901,-1684.67933739,0.0002843,2]
[381032410,1755960637850,-199.0,0.00026649,20]
[381032411,1755960637860,-676.43,0.0002842,10]
[381032412,1755960637870,-4862.57,0.0002843,2]
[381032413,1755960637882,-1148.01990208,0.0002843,2]
[381032419,1755960638220,-20984.46607291,0.0002843,2]
[381032461,1755960639903,-2381.91502258,0.0002843,2]
[381032656,1755960645965,-21216.59897626,0.0002843,2]
[381032657,1755960794038,382.30749064,0.00024216,2]
[381032658,1755960794153,382.30749064,0.0002249,2]
[381032677,1755960945247,149.82,0.00028553,30]
[381032678,1755960967820,280.35882644,0.0002249,2]
[381032679,1755960967870,280.35882644,0.00024216,2]
[381032680,1755961067237,157.0,0.000252,7]
[381032681,1755961120313,159.987798,0.00013699,2]
[381032682,1755961133970,205.59647272,0.0002249,2]
[381032683,1755961134218,205.59647272,0.00024216,2]
[381032686,1755961300439,301.54149336,0.00020763,2]
[381032687,1755961300873,301.54149336,0.00024216,2]
[381032688,1755961300924,301.54149336,0.0002249,2]
[381032691,1755961466328,243.42952475,0.00020763,2]
[381032694,1755961632005,301.35326619,0.00020763,2]
[381032741,1755961832350,-151.182615,0.00025778,2]
[381032743,1755961832360,-302.9072528,0.00026973,2]
[381032745,1755961832369,-154.86705,0.00027653,20]
[381032747,1755961832378,-376.14580871,0.00028,10]
[381032749,1755961832388,-295.0,0.00028231,7]
[381032751,1755961832398,-1215.59630486,0.00028273,2]
[381032753,1755961832407,-703.36668037,0.00028273,2]
[381032790,1755961838011,-199.0,0.00026749,20]
[381032792,1755961838022,-5679.29272155,0.00028273,2]
[381032793,1755961838033,-1418.65154598,0.00028283,2]
[381032794,1755961838044,-611.64512602,0.00028283,2]
[381032796,1755961838055,-194.72792766,0.00028283,2]
[381032798,1755961838064,-250.0,0.00028283,2]
[381032799,1755961838073,-250.0,0.00028283,2]
[381032801,1755961838082,-250.0,0.00028283,2]
[381032803,1755961838091,-250.0,0.00028283,2]
[381032805,1755961838100,-1783.96396515,0.00028283,2]
[381032807,1755961838112,-13779.64299775,0.00028283,2]
[381032808,1755961838174,-5069.81583571,0.00028283,2]
[381032809,1755961838185,-391.02,0.0002829,3]
[381032810,1755961838194,-195.51,0.0002829,3]
[381032811,1755961838204,-586.56,0.0002829,3]
[381032812,1755961838213,-326.21,0.0002829,10]
[381032813,1755961838222,-509.32,0.0002829,10]
[381032814,1755961838232,-403.93405656,0.0002829,2]
[381032816,1755961838241,-500.0,0.00028299,2]
[381032817,1755961838250,-580.78610428,0.00028299,2]
[381032819,1755961838260,-1417.31,0.00028299,2]
[381032821,1755961838269,-170.89443228,0.000283,2]
[381032823,1755961838278,-150.0,0.000283,2]
[381032825,1755961838287,-219058.63957119,0.000283,2]
[381033117,1755961967311,238.44934002,0.00024216,2]
[381033118,1755961967512,238.44934002,0.0002249,2]
[381033119,1755961980266,1181.81076865,0.00025205,2]
[381033120,1755962003397,215.94678008,0.00024,3]
[381033121,1755962003882,215.94678008,0.00025,10]
[381033122,1755962128369,158.90963,0.00013699,2]
[381033123,1755962139554,208.1786038,0.0002249,2]
[381033124,1755962139706,208.1786038,0.00024216,2]
[381033125,1755962145565,414.78318096,0.00024956,2]
[381033126,1755962177158,-217.40260384,0.00025267,3]
[381033127,1755962177180,-84.18092278,0.00025436,3]
[381033128,1755962181045,-218.28518403,0.00025436,3]
[381033129,1755962182677,-23.53389319,0.00025436,3]
[381033130,1755962192393,670.2205265,0.00025205,2]
[381033131,1755962305268,360.84291328,0.0002249,2]
[381033132,1755962305508,360.84291328,0.00024216,2]
[381033143,1755962463828,207.39159048,0.00024966,2]
[381033144,1755962468940,264.6181364,0.0002249,2]
[381033145,1755962468993,264.6181364,0.00024216,2]
[381033146,1755962477953,-166.0,0.00025436,3]
[381033147,1755962477975,-116.12194952,0.00025436,3]
[381033148,1755962480568,-49.87805048,0.00025436,3]
[381033149,1755962480612,-326.0,0.00025436,3]
[381033150,1755962480633,-14.60727314,0.00025436,3]
[381033151,1755962484573,-311.39272686,0.00025436,3]
[381033152,1755962484595,-28.01186494,0.00025436,3]
[381033153,1755962487685,-213.7163675,0.00025436,3]
[381033154,1755962493547,-84.27176756,0.00025436,3]
[381033155,1755962493569,-149.46400871,0.00025436,3]
[381033156,1755962494023,513.71012865,0.00025205,2]
[381033157,1755962494048,698.23465754,0.00025205,2]
[381033158,1755962495547,-176.53599129,0.00025436,3]
[381033159,1755962495570,-17.04217943,0.00025436,3]
[381033160,1755962497038,-258.2798947,0.00025436,3]
[381033161,1755962501363,-50.67792587,0.00025436,3]
[381033162,1755962501386,-249.32207413,0.00025436,3]
[381033163,1755962503333,-76.67792587,0.00025436,3]
[381033164,1755962503354,-129.73699619,0.00025436,3]
[381033165,1755962510029,-156.19886906,0.00025436,3]
[381033166,1755962510397,1192.00876375,0.00025205,2]
[381033167,1755962511987,-40.06413475,0.00025436,3]
[381033168,1755962512010,-303.91108549,0.00025436,3]
[381033169,1755962516665,-22.08891451,0.00025436,3]
[381033170,1755962527019,672.28180599,0.00025205,2]
[381033172,1755962633252,388.10660008,0.00020763,2]
[381033173,1755962633299,388.10660008,0.0002249,2]
[381033174,1755962633353,388.10660008,0.00024216,2]
[381033181,1755962797443,291.07995009,0.00020763,2]
[381033182,1755962951104,-203.255629,0.00025987,2]
[381033183,1755962951125,-1780.58568429,0.00026,30]
[381033184,1755962984223,5000.0,0.00025,7]
[381033185,1755963005838,213.6,0.00025205,2]
[381033209,1755963032323,-1200.0,0.00025734,2]
[381033212,1755963032333,-13169.1606203,0.00025735,2]
[381033213,1755963032346,-199.0,0.000259,30]
[381033214,1755963032356,-5877.96368434,0.00026,30]
[381033216,1755963032365,-213.49640777,0.00026164,2]
[381033218,1755963032374,-234.810293,0.0002639,2]
[381033220,1755963032385,-1000.0,0.00026457,2]
[381033222,1755963032395,-153.0,0.00026848,2]
[381033224,1755963032404,-172.432,0.00026921,15]
[381033225,1755963032413,-632.913,0.00026921,15]
[381033227,1755963032423,-424.43,0.0002698,10]
[381033228,1755963032433,-10430.64087107,0.0002698,2]
[381033230,1755963032442,-353.7,0.0002698,10]
[381033231,1755963032451,-77796.4629205,0.0002699,2]
[381033232,1755963032462,-11657.53844784,0.0002699,2]
[381033235,1755963032482,-7532.74628759,0.0002699,2]
[381033237,1755963032491,-1242.59792734,0.00027593,2]
[381033239,1755963032499,-539.68112448,0.00027596,2]
[381033240,1755963032509,-255.028781,0.00027653,20]
[381033244,1755963032641,-4594.64434974,0.0002783,2]
[381033245,1755963032651,-5821.08065631,0.0002783,2]
[381033246,1755963032661,-168.0,0.00027879,7]
[381033247,1755963032670,-975.96,0.0002788,3]
[381033248,1755963032679,-487.98,0.0002788,3]
[381033249,1755963032689,-243.99,0.0002788,3]
[381033250,1755963032699,-732.02,0.0002788,3]
[381033251,1755963032709,-302.95054242,0.0002788,2]
[381033252,1755963032720,-194.72792766,0.00027889,2]
[381033253,1755963032729,-2030.296672,0.00027889,2]
[381033254,1755963032738,-9464.53128178,0.00027889,2]
[381033256,1755963038310,-500.0,0.00027888,2]
[381033257,1755963038320,-500.0,0.00027888,2]
[381033258,1755963038330,-207.97793103,0.00027888,2]
[381033259,1755963038339,-500.0,0.00027888,2]
[381033260,1755963038352,-207.97558,0.00027888,2]
[381033261,1755963038362,-500.0,0.00027888,2]
[381033262,1755963038371,-500.0,0.00027888,2]
[381033263,1755963038380,-101.04649378,0.00027888,2]
[381033264,1755963038392,-432.11851537,0.00027888,2]
[381033265,1755963038401,-500.0,0.00027888,2]
[381033266,1755963038411,-500.0,0.00027888,2]
[381033267,1755963038423,-171.67064283,0.00027888,2]
[381033268,1755963038434,-500.0,0.00027888,2]
[381033269,1755963038444,-11168.89151683,0.00027889,2]
[381033270,1755963038454,-500.0,0.00027889,2]
[381033271,1755963038463,-256.55027299,0.00027889,2]
[381033272,1755963038473,-1451.18418748,0.0002789,2]
[381033273,1755963038482,-284.156369,0.0002789,7]
[381033274,1755963038492,-979.782677,0.0002789,7]
[381033275,1755963038501,-979.782677,0.0002789,7]
[381033276,1755963038510,-979.782677,0.0002789,7]
[381033277,1755963038520,-2144.897032,0.0002789,7]
[381033278,1755963038529,-151.0,0.0002789,7]
[381033279,1755963038539,-632.47756018,0.0002789,7]
[381033599,1755963042098,-287.4072189,0.0002789,7]
[381033753,1755963043913,-59.89789792,0.0002789,7]
[381033755,1755963043923,-501.52825631,0.0002789,7]
[381034493,1755963125370,341.92437192,0.0002249,2]
[381034494,1755963125417,341.92437192,0.00024216,2]
[381034498,1755963156397,84.62627855,0.00013699,2]